bitfinex/quotes_BTCUSD_20250515
["timestamp","ask_amount","ask_price","bid_price","bid_amount"]
[1747295017507,0.41227997,101870.0,101860.0,0.37396578]
[1747295017708,0.41227997,101870.0,101860.0,0.38378308]
[1747295017928,0.41227997,101870.0,101860.0,0.71028125]
[1747295017929,0.19631875,101870.0,101860.0,0.71028125]
[1747295018144,0.21595016,101870.0,101860.0,0.71537413]
[1747295018374,0.21595006,101870.0,101860.0,0.71537413]
[1747295018595,0.20613431,101870.0,101860.0,0.71537413]
[1747295018815,0.19631875,101870.0,101860.0,0.71537413]
[1747295019235,0.19631875,101870.0,101860.0,0.72991498]
[1747295020403,0.19531875,101870.0,101860.0,0.72591498]
[1747295021471,0.19531875,101870.0,101860.0,0.72391498]
[1747295021680,0.19631875,101870.0,101860.0,0.72891498]
[1747295022116,0.19531875,101870.0,101860.0,0.72691498]
[1747295022324,0.19631875,101870.0,101860.0,0.73291498]
[1747295022823,0.19631875,101870.0,101860.0,0.73691498]
[1747295031450,0.19631875,101870.0,101860.0,0.74691498]
[1747295033381,0.19631875,101870.0,101860.0,1.17071498]
[1747295033801,0.13373711,101870.0,101860.0,1.17071498]
[1747295034475,0.12388991,101900.0,101890.0,0.22573246]
[1747295034686,0.12388991,101900.0,101890.0,0.34257432]
[1747295034892,0.13370326,101900.0,101890.0,0.34257432]
[1747295035777,0.13370326,101900.0,101890.0,0.34357432]
[1747295036204,0.05635252,101900.0,101890.0,0.34357432]
[1747295036415,0.04653917,101900.0,101890.0,0.34357432]
[1747295036647,0.05635252,101900.0,101890.0,0.34357432]
[1747295036872,0.03672592,101900.0,101890.0,0.34357432]
[1747295037523,0.02691286,101900.0,101890.0,0.35337379]
[1747295037733,0.04653917,101900.0,101890.0,0.35337379]
[1747295037956,0.05635252,101900.0,101890.0,0.35337379]
[1747295038210,0.01962592,101900.0,101890.0,0.35337379]
[1747295038420,0.02943927,101900.0,101890.0,0.35337379]
[1747295039071,0.04703927,101900.0,101890.0,0.35337379]
[1747295039725,0.06523927,101900.0,101890.0,0.35337379]
[1747295040389,0.25169726,101900.0,101890.0,0.03033193]
[1747295042521,0.25169726,101900.0,101890.0,0.001]
[1747295042732,0.34900666,101900.0,101890.0,0.001]
[1747295043158,0.82788882,101900.0,101890.0,0.001]
[1747295043406,0.77312666,101900.0,101890.0,0.001]
[1747295043850,1.05572882,101900.0,101890.0,0.001]
[1747295044065,1.91541059,101900.0,101890.0,0.001]
[1747295044330,1.81810119,101900.0,101890.0,0.001]
[1747295044563,1.15274204,101900.0,101890.0,0.001]
[1747295044992,0.25106083,101870.0,101860.0,4.839e-05]
[1747295045189,0.44734083,101870.0,101860.0,4.839e-05]
[1747295045618,0.54465023,101870.0,101860.0,4.839e-05]
[1747295046030,0.82725239,101870.0,101860.0,4.839e-05]
[1747295046238,0.82725239,101870.0,101860.0,0.00304839]
[1747295046450,1.28321239,101870.0,101860.0,4.839e-05]
[1747295046857,1.28321239,101870.0,101860.0,0.00204839]
[1747295047075,1.29809562,101870.0,101860.0,0.00204839]
[1747295047286,1.29809562,101870.0,101860.0,4.839e-05]
[1747295047287,1.31263647,101870.0,101860.0,4.839e-05]
[1747295047518,1.75094587,101870.0,101860.0,0.00504839]
[1747295047739,0.26087959,101830.0,101820.0,0.00982125]
[1747295047955,0.45715959,101830.0,101820.0,0.00982125]
[1747295048192,0.00982106,101820.0,101810.0,0.61854781]
[1747295048443,0.23396737,101820.0,101810.0,0.06246411]
[1747295048675,0.00982106,101820.0,101810.0,0.60873058]
[1747295048900,0.02946201,101820.0,101810.0,0.2687298]
[1747295049114,0.02946201,101820.0,101810.0,0.27855134]
[1747295049326,0.03928326,101820.0,101810.0,0.2687298]
[1747295049541,0.03928326,101820.0,101810.0,0.6087298]
[1747295049759,0.23570832,101820.0,101810.0,0.61855221]
[1747295050193,0.23570832,101820.0,101810.0,0.62837394]
[1747295050421,0.04028326,101820.0,101810.0,0.63437394]
[1747295050659,0.02064105,101820.0,101810.0,0.64419557]
[1747295050892,0.05010384,101820.0,101810.0,0.6441949]
[1747295051108,0.05010519,101820.0,101810.0,0.63437336]
[1747295051324,0.23770948,101820.0,101810.0,0.62855173]
[1747295051540,0.002,101820.0,101810.0,0.6481949]
[1747295051755,0.01182048,101820.0,101810.0,0.6481949]
[1747295051995,0.002,101820.0,101810.0,0.7814043]
[1747295053070,0.002,101820.0,101810.0,1.2372443]
[1747295058339,0.002,101820.0,101810.0,1.25178515]
[1747295060753,0.23595028,101870.0,101820.0,0.38824085]
[1747295060970,0.32783316,101860.0,101850.0,0.21599957]
[1747295061226,0.00981749,101850.0,101840.0,0.23552871]
[1747295061435,0.01963546,101850.0,101840.0,0.67283811]
[1747295061647,0.00981749,101850.0,101840.0,0.67283811]
[1747295061856,0.0561711,101850.0,101840.0,0.67283811]
[1747295062065,0.0561711,101850.0,101840.0,0.35953246]
[1747295062066,0.25050323,101850.0,101840.0,0.35953246]
[1747295062286,0.25050323,101850.0,101840.0,0.22578655]
[1747295062513,0.25050323,101850.0,101840.0,0.24542471]
[1747295062713,0.25050323,101850.0,101840.0,0.22578655]
[1747295062934,0.25050323,101850.0,101840.0,0.23560558]
[1747295063600,0.25050323,101850.0,101840.0,4.839e-05]
[1747295064291,0.25050323,101850.0,101840.0,0.00104839]
[1747295065374,0.44688323,101850.0,101840.0,0.00104839]
[1747295066204,0.44688323,101850.0,101840.0,0.00108839]
[1747295067624,0.54419263,101850.0,101840.0,0.00108839]
[1747295068470,0.82679479,101850.0,101840.0,0.00108839]
[1747295068678,0.54419263,101850.0,101840.0,0.00108839]
[1747295070963,0.82679479,101850.0,101840.0,0.00108839]
[1747295071206,1.7881272,101850.0,101840.0,0.00108839]
[1747295071873,1.8381272,101850.0,101840.0,0.00108839]
[1747295072091,1.55552504,101850.0,101840.0,0.00108839]
[1747295072309,1.27292288,101850.0,101840.0,0.00108839]
[1747295072537,1.45821564,101850.0,101840.0,0.00108839]
[1747295072772,1.17861348,101850.0,101840.0,0.00108839]
[1747295072995,1.17861348,101850.0,101840.0,8.839e-05]
[1747295072996,0.93719263,101850.0,101840.0,8.839e-05]
[1747295073223,0.59719263,101850.0,101840.0,8.839e-05]
[1747295073455,0.59719263,101850.0,101840.0,0.00990771]
[1747295073685,0.45388323,101850.0,101840.0,0.21711322]
[1747295073905,0.44406536,101850.0,101840.0,0.01090771]
[1747295074624,0.44399883,101850.0,101840.0,0.00108839]
[1747295077154,0.4342472,101850.0,101840.0,0.00108839]
[1747295078265,0.21319816,101850.0,101840.0,0.22693157]
[1747295078485,0.41938323,101850.0,101840.0,0.23664539]
[1747295078703,0.41938323,101850.0,101840.0,0.23664549]
[1747295078942,0.20338,101850.0,101840.0,0.63058306]
[1747295079187,0.20338,101850.0,101840.0,0.72789246]
[1747295079399,0.20338,101850.0,101840.0,0.74243331]
[1747295079615,0.20354,101850.0,101840.0,0.74243331]
[1747295079827,0.19954,101850.0,101840.0,1.16543331]
[1747295080041,0.19654,101850.0,101840.0,1.16543331]
[1747295081137,0.19654,101850.0,101840.0,1.16743331]
[1747295082031,0.19654,101850.0,101840.0,1.62319331]
[1747295082926,0.07735074,101880.0,101870.0,0.56577677]
[1747295083136,0.02944176,101890.0,101880.0,0.56575462]
[1747295083347,0.21591863,101890.0,101880.0,0.34]
[1747295083563,0.25031863,101890.0,101880.0,0.34]
[1747295083774,0.25031863,101890.0,101880.0,0.34981537]
[1747295083992,0.25031863,101890.0,101880.0,0.54612475]
[1747295084204,0.25031863,101890.0,101880.0,0.5657552]
[1747295084442,0.24050442,101890.0,101880.0,0.5657552]
[1747295084589,0.24050442,101890.0,101880.0,0.57557028]
[1747295084968,0.24050442,101890.0,101880.0,0.5657552]
[1747295085413,0.23169011,101890.0,101880.0,0.34]
[1747295085760,0.20612465,101880.0,101870.0,0.26612766]
[1747295085975,0.24182465,101880.0,101870.0,0.28576042]
[1747295086390,0.24182465,101880.0,101870.0,0.0195552]
[1747295086605,0.52442681,101880.0,101870.0,0.0195552]
[1747295086824,0.02944784,101870.0,101860.0,0.78301986]
[1747295087035,0.25216122,101870.0,101860.0,0.56704]
[1747295087241,0.25216122,101870.0,101860.0,0.57685739]
[1747295087448,0.25216122,101870.0,101860.0,0.77320531]
[1747295087852,0.25216122,101870.0,101860.0,0.78302261]
[1747295088064,0.25216122,101870.0,101860.0,0.56704]
[1747295088276,0.01963373,101860.0,101850.0,0.47239163]
[1747295088492,0.03926832,101860.0,101850.0,0.48225799]
[1747295088720,0.04908513,101860.0,101850.0,0.59521818]
[1747295088921,0.00981672,101860.0,101850.0,0.26503586]
[1747295089124,0.02945063,101860.0,101850.0,0.60503586]
[1747295089351,0.02945063,101860.0,101850.0,0.59521818]
[1747295089555,0.03926802,101860.0,101850.0,0.59521818]
[1747295089802,0.03926802,101860.0,101850.0,0.58540031]
[1747295089947,0.03926802,101860.0,101850.0,0.58940031]
[1747295090196,0.23561594,101860.0,101850.0,0.58940031]
[1747295090405,0.01963353,101860.0,101850.0,0.58940031]
[1747295090588,0.00981652,101860.0,101850.0,0.58939895]
[1747295090760,0.00981652,101860.0,101850.0,0.59439895]
[1747295090936,0.01963333,101860.0,101850.0,0.82143895]
[1747295091140,0.02945034,101860.0,101850.0,0.82143895]
[1747295091340,0.01963333,101860.0,101850.0,0.82143895]
[1747295091804,0.00981652,101860.0,101850.0,0.82143895]
[1747295092153,0.01963333,101860.0,101850.0,0.91874835]
[1747295092760,0.01963324,101860.0,101850.0,0.91874835]
[1747295093339,0.00981585,101870.0,101860.0,0.21598203]
[1747295093541,0.03926359,101870.0,101860.0,0.22579875]
[1747295093744,0.02944736,101870.0,101860.0,0.22579875]
[1747295094436,0.01963151,101870.0,101860.0,0.32310815]
[1747295094677,0.02944707,101870.0,101860.0,0.32310815]
[1747295094887,0.01963122,101870.0,101860.0,0.34180815]
[1747295095090,0.02944717,101870.0,101860.0,0.34480815]
[1747295095296,0.03926331,101870.0,101860.0,0.34480815]
[1747295095512,0.04907964,101870.0,101860.0,0.32910815]
[1747295096029,0.2355935,101870.0,101860.0,0.23179884]
[1747295097502,0.2355935,101870.0,101860.0,0.21216512]
[1747295097708,0.25136141,101870.0,101860.0,0.21216531]
[1747295097909,0.25136141,101870.0,101860.0,0.23179971]
[1747295098369,0.24154508,101870.0,101860.0,0.01581739]
[1747295099010,0.23172865,101870.0,101860.0,0.006]
[1747295100582,0.51433081,101870.0,101860.0,0.006]
[1747295100804,0.68899095,101870.0,101860.0,0.006]
[1747295101033,1.13142198,101870.0,101860.0,0.006]
[1747295101261,1.99481627,101870.0,101860.0,0.006]
[1747295101484,0.53980813,101860.0,101850.0,8.839e-05]
[1747295101731,0.83345753,101860.0,101850.0,8.839e-05]
[1747295101961,1.15891668,101860.0,101850.0,8.839e-05]
[1747295102404,1.61171668,101860.0,101850.0,8.839e-05]
[1747295102844,1.62625753,101860.0,101850.0,8.839e-05]
[1747295103062,1.62925753,101860.0,101850.0,8.839e-05]
[1747295103935,1.63225753,101860.0,101850.0,8.839e-05]
[1747295104619,1.64577603,101860.0,101850.0,8.839e-05]
[1747295104828,1.63225753,101860.0,101850.0,8.839e-05]
[1747295105692,1.34965537,101860.0,101850.0,8.839e-05]
[1747295105882,1.63225753,101860.0,101850.0,8.839e-05]
[1747295106174,1.17945753,101860.0,101850.0,8.839e-05]
[1747295106602,1.72956693,101860.0,101850.0,8.839e-05]
[1747295106818,1.63225753,101860.0,101850.0,8.839e-05]
[1747295109242,1.91485969,101860.0,101850.0,8.839e-05]
[1747295110117,1.91185969,101860.0,101850.0,8.839e-05]
[1747295110543,1.91985969,101860.0,101850.0,0.00108839]
[1747295110731,2.02716909,101860.0,101850.0,0.00108839]
[1747295110973,0.20618536,101850.0,101840.0,4e-05]
[1747295111201,0.93013993,101850.0,101840.0,4e-05]
[1747295111423,1.12647993,101850.0,101840.0,4e-05]
[1747295111646,1.98778933,101850.0,101840.0,4e-05]
[1747295111864,2.03778933,101850.0,101840.0,4e-05]
[1747295112097,2.04778933,101850.0,101840.0,4e-05]
[1747295112307,2.05378933,101850.0,101840.0,0.00104]
[1747295113421,2.05878933,101850.0,101840.0,0.00104]
[1747295114580,2.04878933,101850.0,101840.0,0.00104]
[1747295115042,0.59316689,101820.0,101810.0,0.02566538]
[1747295115240,1.33965629,101820.0,101810.0,0.02566538]
[1747295115457,1.11313629,101820.0,101810.0,0.02566538]
[1747295116340,1.11825792,101820.0,101810.0,0.02566538]
[1747295117153,1.40186008,101820.0,101810.0,0.02566538]
[1747295117526,1.40386008,101820.0,101810.0,0.02666538]
[1747295118158,1.40386008,101820.0,101810.0,0.00666538]
[1747295118380,1.78532771,101820.0,101810.0,0.00666538]
[1747295119065,1.13379877,101820.0,101810.0,0.00566538]
[1747295119282,1.17454008,101820.0,101810.0,0.00566538]
[1747295119506,1.62946008,101820.0,101810.0,0.00566538]
[1747295119733,0.51783792,101820.0,101810.0,0.00566538]
[1747295120236,0.52083792,101820.0,101810.0,0.00566538]
[1747295121566,0.57975792,101820.0,101810.0,0.00566538]
[1747295121803,0.52083792,101820.0,101810.0,0.00566538]
[1747295123079,0.42352852,101820.0,101810.0,0.00566538]
[1747295123286,0.41370775,101820.0,101810.0,0.02376538]
[1747295123498,0.41370775,101820.0,101810.0,0.04226538]
[1747295124856,0.41370775,101820.0,101810.0,0.00566538]
[1747295125753,0.41370775,101820.0,101810.0,0.00570538]
[1747295126423,0.79361931,101820.0,101810.0,0.00570538]
[1747295126649,0.52881715,101820.0,101810.0,0.00570538]
[1747295126868,0.81141931,101820.0,101810.0,0.00570538]
[1747295127099,0.82931931,101820.0,101810.0,0.00570538]
[1747295127520,0.52881715,101820.0,101810.0,0.00570538]
[1747295127993,0.51101715,101820.0,101810.0,0.00570538]
[1747295128664,0.41370775,101820.0,101810.0,0.00570538]
[1747295129082,0.41370775,101820.0,101810.0,0.02410538]
[1747295129487,0.51101715,101820.0,101810.0,0.00570538]
[1747295129697,0.54761715,101820.0,101810.0,0.00570538]
[1747295130321,1.31774154,101820.0,101810.0,0.00570538]
[1747295130538,0.88761715,101820.0,101810.0,0.00570538]
[1747295131186,0.51101715,101820.0,101810.0,0.00570538]
[1747295133185,0.81141931,101820.0,101810.0,0.00570538]
[1747295133393,0.83061931,101820.0,101810.0,0.00570538]
[1747295135409,1.17061931,101820.0,101810.0,0.00570538]
[1747295135621,1.26792871,101820.0,101810.0,0.00570538]
[1747295136060,1.94782871,101820.0,101810.0,0.00570538]
[1747295136264,1.85051931,101820.0,101810.0,0.00570538]
[1747295138664,2.13312147,101820.0,101810.0,0.00570538]
[1747295138870,1.85051931,101820.0,101810.0,0.00570538]
[1747295139077,2.14766232,101820.0,101810.0,0.00570538]
[1747295139282,2.2722413,101820.0,101810.0,0.00570538]
[1747295141967,2.3222413,101820.0,101810.0,0.00570538]
[1747295145045,1.6423413,101820.0,101810.0,0.00570538]
[1747295146755,1.6393413,101820.0,101810.0,0.00570538]
[1747295146982,1.6363413,101820.0,101810.0,0.00570538]
[1747295147190,1.6503413,101820.0,101810.0,0.00570538]
[1747295148254,1.6603413,101820.0,101810.0,0.00570538]
[1747295148464,1.6633413,101820.0,101810.0,0.00570538]
[1747295148900,1.6533413,101820.0,101810.0,0.00570538]
[1747295149115,1.6503413,101820.0,101810.0,0.00570538]
[1747295149323,1.6463413,101820.0,101810.0,0.00570538]
[1747295149537,1.6593413,101820.0,101810.0,0.00670538]
[1747295150818,0.87636853,101810.0,101800.0,0.20276394]
[1747295151020,1.29459691,101810.0,101800.0,0.20276394]
[1747295151474,1.59173992,101810.0,101800.0,0.20276394]
[1747295151900,2.11921992,101810.0,101800.0,0.20276394]
[1747295152110,2.13021992,101810.0,101800.0,0.204248]
[1747295152332,1.84761776,101810.0,101800.0,0.204248]
[1747295152569,1.37905776,101810.0,101800.0,0.204248]
[1747295152779,1.79873776,101810.0,101800.0,0.204248]
[1747295153422,2.08133992,101810.0,101800.0,0.204248]
[1747295153631,1.79873776,101810.0,101800.0,0.204248]
[1747295154054,2.08133992,101810.0,101800.0,0.204248]
[1747295154268,2.09622305,101810.0,101800.0,0.204248]
[1747295157970,0.59538663,101800.0,101790.0,0.01557137]
[1747295158223,1.98586973,101800.0,101790.0,0.01557137]
[1747295158631,2.02048436,101800.0,101790.0,0.00771229]
[1747295159064,0.25814775,101790.0,101780.0,0.43495179]
[1747295159272,1.11700147,101790.0,101780.0,0.43495179]
[1747295160105,1.28393931,101790.0,101780.0,0.43495179]
[1747295160531,1.68325087,101790.0,101780.0,0.43495179]
[1747295160772,1.68525087,101790.0,101780.0,0.43595179]
[1747295161693,2.03525087,101790.0,101780.0,0.43595179]
[1747295161910,2.09417087,101790.0,101780.0,0.43595179]
[1747295162345,2.09817087,101790.0,101780.0,0.43595179]
[1747295169308,2.12766487,101790.0,101780.0,0.43595179]
[1747295169595,2.11766487,101790.0,101780.0,0.43595179]
[1747295169776,2.12766487,101790.0,101780.0,0.43595179]
[1747295170814,2.11766487,101790.0,101780.0,0.43595179]
[1747295171030,2.12766487,101790.0,101780.0,0.43595179]
[1747295171468,2.11766487,101790.0,101780.0,0.43595179]
[1747295171674,2.12766487,101790.0,101780.0,0.43595179]
[1747295172104,2.12634448,101790.0,101780.0,0.43595179]
[1747295173579,2.13634448,101790.0,101780.0,0.43595179]
[1747295173783,2.16354175,101790.0,101780.0,0.43595179]
[1747295174198,1.58833743,101790.0,101780.0,0.43595179]
[1747295174426,2.15354175,101790.0,101780.0,0.43595179]
[1747295175483,1.58833743,101790.0,101780.0,0.43595179]
[1747295175695,2.15354175,101790.0,101780.0,0.43595179]
[1747295181312,1.58833743,101790.0,101780.0,0.43595179]
[1747295181515,2.15354175,101790.0,101780.0,0.43595179]
[1747295181719,1.58833743,101790.0,101780.0,0.43595179]
[1747295181921,2.15354175,101790.0,101780.0,0.43595179]
[1747295182575,2.15354175,101790.0,101780.0,0.38857499]
[1747295183422,2.15602175,101790.0,101780.0,0.38857499]
[1747295184295,2.18170175,101790.0,101780.0,0.38857499]
[1747295186286,2.18170175,101790.0,101780.0,0.38071509]
[1747295186727,2.12278175,101790.0,101780.0,0.38071509]
[1747295187385,2.13278175,101790.0,101780.0,0.38071509]
[1747295188960,2.13278175,101790.0,101780.0,0.37285519]
[1747295189373,2.12878175,101790.0,101780.0,0.36499529]
[1747295189587,2.17370175,101790.0,101780.0,0.24851642]
[1747295189842,2.18370175,101790.0,101780.0,0.16511855]
[1747295190037,2.18370175,101790.0,101780.0,0.09292224]
[1747295190257,2.18370175,101790.0,101780.0,0.01895705]
[1747295190487,2.18370175,101790.0,101750.0,0.19134056]
[1747295190488,0.53654088,101760.0,101750.0,0.19134056]
[1747295190704,1.68573063,101760.0,101750.0,0.15474056]
[1747295190908,1.40312847,101760.0,101750.0,0.15474056]
[1747295191125,1.68573063,101760.0,101750.0,0.15474056]
[1747295191332,1.19042571,101760.0,101750.0,0.15474056]
[1747295191542,1.72835226,101760.0,101750.0,0.15474056]
[1747295191762,1.75562388,101760.0,101750.0,0.15474056]
[1747295191980,1.77064759,101760.0,101750.0,0.15474056]
[1747295192196,1.17289409,101760.0,101750.0,0.15474056]
[1747295192411,1.43699625,101760.0,101750.0,0.15474056]
[1747295192630,1.18903625,101760.0,101750.0,0.15474056]
[1747295192838,1.72051625,101760.0,101750.0,0.15474056]
[1747295193049,1.53522349,101760.0,101750.0,0.15474056]
[1747295193262,1.43791409,101760.0,101750.0,0.15474056]
[1747295193470,1.6872554,101760.0,101750.0,0.19214056]
[1747295193700,1.1584954,101760.0,101750.0,0.15474056]
[1747295193907,1.1584954,101760.0,101750.0,0.15574056]
[1747295193908,1.6882554,101760.0,101750.0,0.15574056]
[1747295194133,1.7855648,101760.0,101750.0,0.15574056]
[1747295194348,1.77283403,101760.0,101750.0,0.15574056]
[1747295194573,2.09223619,101760.0,101750.0,0.15574056]
[1747295195056,1.80963403,101760.0,101750.0,0.15574056]
[1747295195278,1.79133403,101760.0,101750.0,0.15574056]
[1747295195497,1.41142247,101760.0,101750.0,0.15574056]
[1747295195688,1.69402463,101760.0,101750.0,0.15574056]
[1747295196423,1.39610378,101760.0,101750.0,0.15574056]
[1747295196660,1.66214378,101760.0,101750.0,0.15574056]
[1747295199913,1.66214378,101760.0,101750.0,0.15074056]
[1747295200155,1.75945318,101760.0,101750.0,0.15074056]
[1747295200794,1.78895418,101760.0,101750.0,0.15074056]
[1747295200974,1.69164478,101760.0,101750.0,0.15074056]
[1747295201449,1.69164478,101760.0,101750.0,0.16864056]
[1747295201634,1.69164478,101760.0,101750.0,0.15074056]
[1747295203845,2.01124694,101760.0,101750.0,0.15074056]
[1747295204098,2.06124694,101760.0,101750.0,0.15074056]
[1747295204311,2.15855634,101760.0,101750.0,0.15074056]
[1747295205384,1.87595418,101760.0,101750.0,0.15074056]
[1747295206049,1.85695418,101760.0,101750.0,0.15074056]
[1747295206264,1.83895418,101760.0,101750.0,0.15074056]
[1747295206458,1.30903418,101760.0,101750.0,0.15074056]
[1747295206721,1.83759418,101760.0,101750.0,0.15074056]
[1747295207389,1.73972478,101760.0,101750.0,0.15074056]
[1747295208903,2.06052694,101760.0,101750.0,0.15074056]
[1747295209539,1.77792478,101760.0,101750.0,0.15074056]
[1747295209753,1.47682262,101760.0,101750.0,0.15074056]
[1747295209973,1.77732478,101760.0,101750.0,0.15074056]
[1747295210217,1.80320478,101760.0,101750.0,0.15074056]
[1747295210440,1.80620478,101760.0,101750.0,0.14974056]
[1747295210878,1.52560262,101760.0,101750.0,0.14974056]
[1747295211093,1.79030478,101760.0,101750.0,0.14974056]
[1747295211725,1.84922478,101760.0,101750.0,0.14974056]
[1747295213388,1.80064478,101760.0,101750.0,0.14974056]
[1747295213771,1.80064478,101760.0,101750.0,0.16854056]
[1747295214173,1.80064478,101760.0,101750.0,0.14974056]
[1747295216153,1.80200478,101760.0,101750.0,0.14974056]
[1747295216397,1.27264478,101760.0,101750.0,0.14974056]
[1747295216640,1.82203028,101760.0,101750.0,0.14974056]
[1747295216853,1.76311028,101760.0,101750.0,0.14974056]
[1747295217114,1.21372478,101760.0,101750.0,0.14974056]
[1747295217337,1.19508262,101760.0,101750.0,0.18664056]
[1747295217545,0.82558162,101760.0,101750.0,0.18664056]
[1747295223143,0.56162162,101760.0,101750.0,0.18664056]
[1747295231313,0.55762162,101760.0,101750.0,0.18664056]
[1747295231527,0.55762162,101760.0,101750.0,0.20532769]
[1747295231745,0.55862162,101760.0,101750.0,0.20532769]
[1747295232155,0.55962162,101760.0,101750.0,0.20632769]
[1747295232576,0.28542503,101760.0,101750.0,0.23069654]
[1747295232788,0.23542377,101760.0,101750.0,0.44691216]
[1747295233002,0.43196533,101760.0,101750.0,0.22086854]
[1747295233247,0.42213887,101760.0,101750.0,0.22086854]
[1747295233661,0.42213887,101760.0,101750.0,0.42725664]
[1747295234896,0.20594449,101760.0,101750.0,0.44691159]
[1747295235102,0.23542426,101760.0,101750.0,0.44691159]
[1747295235316,0.2452513,101760.0,101750.0,0.45673921]
[1747295235530,0.43196514,101760.0,101750.0,0.44691178]
[1747295237088,0.43196514,101760.0,101750.0,0.43708426]
[1747295237312,0.42213878,101760.0,101750.0,0.22086854]
[1747295237536,0.40248537,101760.0,101750.0,0.18764056]
[1747295237992,0.86029133,101760.0,101750.0,0.15074056]
[1747295238246,0.57714551,101760.0,101750.0,0.15074056]
[1747295238454,0.57714551,101760.0,101750.0,0.16944056]
[1747295238869,0.57714551,101760.0,101750.0,0.15074056]
[1747295239723,0.49979477,101760.0,101750.0,0.15074056]
[1747295243108,0.57714551,101760.0,101750.0,0.15074056]
[1747295243531,0.49979477,101760.0,101750.0,0.15074056]
[1747295246848,0.49979477,101760.0,101750.0,0.17044056]
[1747295248158,0.49979477,101760.0,101750.0,0.15074056]
[1747295248994,0.49979477,101760.0,101750.0,0.18888769]
[1747295249888,0.49979477,101760.0,101750.0,0.15074056]
[1747295252383,0.89869133,101760.0,101750.0,0.15074056]
[1747295254169,1.23869133,101760.0,101750.0,0.15074056]
[1747295254810,0.87819477,101760.0,101750.0,0.15074056]
[1747295254997,1.16134059,101760.0,101750.0,0.15074056]
[1747295256423,1.27420481,101760.0,101750.0,0.15074056]
[1747295256858,1.19083959,101760.0,101750.0,0.15074056]
[1747295257471,1.09361775,101760.0,101750.0,0.15074056]
[1747295262722,0.90769377,101760.0,101750.0,0.15074056]
[1747295262939,1.14685377,101760.0,101750.0,0.15074056]
[1747295263153,0.86929377,101760.0,101750.0,0.15074056]
[1747295263371,0.96660317,101760.0,101750.0,0.15074056]
[1747295263821,1.15252715,101760.0,101750.0,0.15074056]
[1747295264040,1.46852715,101760.0,101750.0,0.15074056]
[1747295265710,1.28260317,101760.0,101750.0,0.15074056]
[1747295265940,1.37121775,101760.0,101750.0,0.15074056]
[1747295266168,1.64533775,101760.0,101750.0,0.15074056]
[1747295266410,1.65536375,101760.0,101750.0,0.15074056]
[1747295268694,1.75267315,101760.0,101750.0,0.15074056]
[1747295269355,1.65536375,101760.0,101750.0,0.15074056]
[1747295270222,1.46943977,101760.0,101750.0,0.15074056]
[1747295271097,1.10444375,101760.0,101750.0,0.15074056]
[1747295271324,0.91851977,101760.0,101750.0,0.15074056]
[1747295271565,1.10444375,101760.0,101750.0,0.15074056]
[1747295272461,1.20175315,101760.0,101750.0,0.15074056]
[1747295274577,1.38767713,101760.0,101750.0,0.15074056]
[1747295274806,1.96623915,101760.0,101750.0,0.15074056]
[1747295275492,1.59439119,101760.0,101750.0,0.15074056]
[1747295275719,1.96623915,101760.0,101750.0,0.15074056]
[1747295276350,1.96323915,101760.0,101750.0,0.15074056]
[1747295277194,1.96223915,101760.0,101750.0,0.14974056]
[1747295277590,2.64413915,101760.0,101750.0,0.14974056]
[1747295277855,2.71305915,101760.0,101750.0,0.14974056]
[1747295278084,2.71805915,101760.0,101750.0,0.14974056]
[1747295278876,1.62866179,101760.0,101750.0,0.14974056]
[1747295279076,2.17734179,101760.0,101750.0,0.14974056]
[1747295279269,1.81458577,101760.0,101750.0,0.14974056]
[1747295279474,2.36322577,101760.0,101750.0,0.14974056]
[1747295279676,2.17730179,101760.0,101750.0,0.14974056]
[1747295279885,2.15740179,101760.0,101750.0,0.14974056]
[1747295280085,2.11085977,101760.0,101750.0,0.14974056]
[1747295280347,0.88231977,101760.0,101750.0,0.16914056]
[1747295280551,0.87229377,101760.0,101750.0,0.18934056]
[1747295280806,0.91820642,101760.0,101750.0,0.18934056]
[1747295281011,0.96192409,101760.0,101750.0,0.20829769]
[1747295281220,0.59242509,101760.0,101750.0,0.40485788]
[1747295281440,0.51476928,101760.0,101750.0,0.40485788]
[1747295281639,0.50964765,101760.0,101750.0,0.42922664]
[1747295281840,0.31310619,101760.0,101750.0,0.44888159]
[1747295282105,0.52930096,101760.0,101750.0,0.44888207]
[1747295282470,0.50964795,101760.0,101750.0,0.40833806]
[1747295282694,0.48499406,101760.0,101750.0,0.20195015]
[1747295282916,0.48499406,101760.0,101750.0,0.19212215]
[1747295283159,0.48499406,101760.0,101750.0,0.1775813]
[1747295283383,0.48599406,101760.0,101750.0,0.16909843]
[1747295284288,0.48399406,101760.0,101750.0,0.16909843]
[1747295284537,0.48499406,101760.0,101750.0,0.17109843]
[1747295284765,0.39536374,101760.0,101750.0,0.17109843]
[1747295286179,0.49267314,101760.0,101750.0,0.17109843]
[1747295288204,0.39536374,101760.0,101750.0,0.17109843]
[1747295290331,0.39536374,101760.0,101750.0,0.39202728]
[1747295290332,0.42484399,101760.0,101750.0,0.39202728]
[1747295290778,0.41501753,101760.0,101750.0,0.17109843]
[1747295292132,0.21847607,101760.0,101750.0,0.39714148]
[1747295292357,0.43467074,101760.0,101750.0,0.37748653]
[1747295292568,0.42484457,101760.0,101750.0,0.38750167]
[1747295293009,0.41501772,101760.0,101750.0,0.17109843]
[1747295293688,0.41501772,101760.0,101750.0,0.18092643]
[1747295293908,0.41501772,101760.0,101750.0,0.39702038]
[1747295294584,0.20864922,101760.0,101750.0,0.43121618]
[1747295294808,0.23812957,101760.0,101750.0,0.43121618]
[1747295295041,0.20864913,101760.0,101750.0,0.43121618]
[1747295295269,0.19882286,101760.0,101750.0,0.43121618]
[1747295295502,0.20864903,101760.0,101750.0,0.52852558]
[1747295295731,0.21847539,101760.0,101750.0,0.52852558]
[1747295296200,0.2381288,101760.0,101750.0,0.52852558]
[1747295296418,0.2381287,101760.0,101750.0,0.52852558]
[1747295296651,0.22830195,101760.0,101750.0,0.52852558]
[1747295297839,0.20864903,101760.0,101750.0,0.86852558]
[1747295298059,0.19882286,101760.0,101750.0,0.86852558]
[1747295298279,0.20864903,101760.0,101750.0,0.86852558]
[1747295298503,0.19882286,101760.0,101750.0,0.86852558]
[1747295298740,0.19882286,101760.0,101750.0,1.13744558]
[1747295299204,0.20864903,101760.0,101750.0,1.13744558]
[1747295299659,0.19882286,101760.0,101750.0,1.13744558]
[1747295299879,0.20864913,101760.0,101750.0,0.86852558]
[1747295300532,0.21847559,101760.0,101750.0,0.86852558]
[1747295300760,0.22830224,101760.0,101750.0,0.86852558]
[1747295301214,0.21847559,101760.0,101750.0,0.86852558]
[1747295301462,0.22830224,101760.0,101750.0,0.86852558]
[1747295301661,0.21847559,101760.0,101750.0,0.86852558]
[1747295301868,0.22830224,101760.0,101750.0,0.86852558]
[1747295302305,0.21847559,101760.0,101750.0,0.86852558]
[1747295303492,0.19882286,101760.0,101750.0,0.86852558]
[1747295303702,0.20864913,101760.0,101750.0,0.86852558]
[1747295303911,0.19882286,101760.0,101750.0,0.86852558]
[1747295304349,0.01964781,101790.0,101780.0,0.2541516]
[1747295304570,0.23577769,101790.0,101780.0,0.12765225]
[1747295304793,0.21613066,101790.0,101780.0,0.13747736]